bitfinex/quotes_ETHUSD_20240711
["timestamp","ask_amount","ask_price","bid_price","bid_amount"]
[1720702610564,5.51257,3191.1,3189.4,3.2515027]
[1720702610850,0.07837071,3191.0,3189.4,3.2515027]
[1720702611069,0.07837071,3191.0,3189.4,2.6702197]
[1720702611216,0.07837069,3190.9,3189.4,2.6702197]
[1720702611413,5.53751,3191.0,3189.4,2.6702197]
[1720702611626,0.553751,3190.9,3189.4,2.6702197]
[1720702612077,0.553751,3190.9,3189.6,3.1351]
[1720702612221,2.4037,3191.0,3189.3,2.539]
[1720702612222,2.4037,3191.0,3190.1,3.13469]
[1720702612420,2.4037,3191.0,3189.8,3.13494]
[1720702612421,2.4037,3191.0,3189.8,3.13498]
[1720702612661,2.4037,3191.0,3189.8,3.13491]
[1720702612834,2.4037,3191.0,3190.0,3.13478]
[1720702613031,2.4037,3191.0,3190.1,0.31974694]
[1720702613230,2.4037,3191.0,3190.2,0.06268618]
[1720702613431,2.4037,3191.0,3190.3,0.55]
[1720702614231,0.3125,3192.2,3190.3,0.06268251]
[1720702614455,4.62652893,3192.4,3191.0,3.13373]
[1720702614456,2.3668,3192.1,3191.0,3.13373]
[1720702614767,2.3668,3192.1,3191.0,3.447123]
[1720702615067,2.44512858,3192.1,3191.1,0.55]
[1720702615256,2.3668,3192.1,3191.1,0.55]
[1720702615456,2.3668,3192.1,3191.0,3.13373]
[1720702615662,2.3668,3192.1,3191.1,3.68364]
[1720702615859,2.3668,3192.1,3191.2,0.06266187]
[1720702616168,2.3668,3192.1,3191.3,0.55]
[1720702616553,2.3668,3192.1,3191.4,0.06266188]
[1720702616763,2.3668,3192.1,3191.3,0.55]
[1720702616764,2.3668,3192.1,3191.5,3.13331]
[1720702616933,2.3668,3192.1,3191.6,3.68321]
[1720702617133,2.2688,3193.1,3191.6,3.68321]
[1720702617835,2.2688,3193.1,3191.7,3.13312]
[1720702618060,2.2688,3193.1,3191.8,0.53387515]
[1720702618061,0.07830813,3193.0,3191.8,0.53387515]
[1720702618367,2.2688,3193.1,3191.8,0.53387515]
[1720702618567,2.2688,3193.1,3191.4,3.13335]
[1720702618568,0.07831376,3192.9,3191.0,3.13381]
[1720702618783,0.07831376,3192.9,3191.2,3.1336]
[1720702618784,3.75816914,3192.9,3191.2,3.1336]
[1720702618964,0.54789538,3192.9,3191.3,3.13351]
[1720702619279,2.2688,3193.1,3191.6,3.1332]
[1720702619471,2.2688,3193.1,3191.7,3.19569646]
[1720702619687,2.2688,3193.1,3191.7,0.06264646]
[1720702619882,2.2688,3193.1,3191.8,3.13302]
[1720702620034,2.2688,3193.1,3191.8,3.19566803]
[1720702620236,3.43707133,3193.0,3191.1,3.447031]
[1720702620535,0.22688,3193.0,3191.1,0.37603886]
[1720702620746,0.22688,3193.0,3191.8,3.133]
[1720702621585,3.13212,3192.8,3191.1,0.313381]
[1720702621730,5.5016,3192.6,3190.9,3.13384]
[1720702621931,2.3693,3192.6,3190.9,3.13384]
[1720702622172,0.22688,3193.0,3190.5,3.13]
[1720702622173,2.3693,3192.4,3190.5,3.13]
[1720702622379,2.3693,3192.0,3190.1,3.13463]
[1720702622561,2.3693,3192.0,3190.5,3.13429]
[1720702622773,2.3693,3192.0,3189.5,0.6379484]
[1720702622774,2.3693,3190.5,3189.5,0.6379484]
[1720702622985,1.14856684,3190.4,3188.7,3.13604]
[1720702623146,1.14856684,3190.4,3188.3,0.6379484]
[1720702623147,1.14856684,3190.4,3188.4,3.13635]
[1720702623346,1.14856684,3190.4,3188.0,3.95692261]
[1720702623347,0.66521768,3190.3,3188.8,3.13597]
[1720702623740,0.66521768,3190.3,3189.0,3.13576]
[1720702623961,0.07837362,3190.2,3188.5,0.313635]
[1720702624161,1.14855215,3190.2,3188.5,0.313635]
[1720702624466,1.14855215,3190.2,3188.4,0.0627054]
[1720702625255,1.14855215,3190.2,3188.0,4.63667769]
[1720702625468,5.46063,3190.1,3188.2,3.13656]
[1720702625692,1.14856929,3190.0,3188.3,3.13645]
[1720702625880,1.07017853,3190.0,3188.5,3.13625]
[1720702626077,2.40428159,3190.1,3188.5,3.13625]
[1720702626310,0.07838931,3190.0,3188.6,3.1361]
[1720702626535,2.3259,3190.1,3188.4,0.37635379]
[1720702626829,3.39607853,3190.1,3188.4,3.06270879]
[1720702627051,0.80204697,3191.4,3188.4,3.06270879]
[1720702627052,2.3259,3190.9,3189.3,3.13546]
[1720702627332,2.3259,3190.9,3189.7,3.13505]
[1720702627626,2.3259,3190.9,3188.9,4.39]
[1720702627627,0.07835472,3190.8,3189.2,0.06268378]
[1720702627787,0.07835658,3190.8,3189.3,0.55]
[1720702627985,0.07835658,3190.8,3189.3,3.68541]
[1720702628203,0.07836501,3190.7,3189.3,0.55]
[1720702628508,0.07836501,3190.7,3188.7,3.13602]
[1720702628509,5.57122,3190.5,3188.7,3.13602]
[1720702628822,5.57122,3190.5,3188.2,7.29]
[1720702628823,3.77776123,3190.4,3188.8,0.313602]
[1720702629138,1.1204028,3190.4,3188.9,0.06270827]
[1720702629436,1.1204028,3190.4,3188.2,7.29]
[1720702629437,1.1204028,3190.4,3189.0,3.1357]
[1720702629588,1.1204028,3190.4,3189.0,3.19840253]
[1720702629788,0.07837199,3190.3,3188.7,3.13606]
[1720702629998,1.1204028,3190.4,3188.8,3.1359]
[1720702630199,1.1204028,3190.4,3189.3,3.13547]
[1720702630486,2.4369,3190.5,3189.4,0.61269676]
[1720702630687,2.4369,3190.5,3189.7,3.13508]
[1720702630888,2.4369,3190.5,3189.8,0.55]
[1720702631329,0.07836946,3190.4,3189.2,3.13548]
[1720702631486,0.07836946,3190.4,3189.3,0.55]
[1720702631487,0.0783719,3190.4,3189.3,0.55]
[1720702631838,0.30707154,3190.3,3189.3,0.55]
[1720702632134,2.99234346,3190.5,3189.4,3.19807751]
[1720702632301,2.99234346,3190.5,3189.5,0.55]
[1720702632690,2.99234346,3190.5,3189.5,3.68524]
[1720702633189,2.99234346,3190.5,3189.5,0.55]
[1720702633190,0.07836606,3190.4,3189.5,0.55]
[1720702633488,0.07836606,3190.4,3188.9,0.31359]
[1720702633688,0.55544346,3190.3,3189.0,0.40765542]
[1720702633919,2.4369,3190.5,3189.5,3.13528]
[1720702634236,2.4369,3190.5,3189.6,3.19777998]
[1720702634439,2.4369,3190.5,3189.9,3.13488]
[1720702634602,2.4369,3190.5,3189.7,3.13502]
[1720702634804,2.4369,3190.5,3189.8,0.55]
[1720702635121,2.4369,3190.5,3189.9,3.13488]
[1720702635740,1.50625678,3191.3,3189.9,3.13488]
[1720702635741,2.3174,3191.1,3190.0,3.68478]
[1720702635891,2.87284346,3191.1,3190.0,3.68478]
[1720702636489,1.50625678,3191.3,3190.6,3.1342]
[1720702636692,2.414,3191.8,3190.7,0.86342]
[1720702636896,0.07833148,3191.7,3190.7,0.55]
[1720702637426,0.07833148,3191.7,3189.6,0.06267719]
[1720702637641,0.07833148,3191.7,3189.7,0.55]
[1720702637642,2.2651,3191.6,3189.7,0.55]
[1720702637786,0.07835213,3191.5,3190.1,3.13469]
[1720702637992,2.2651,3191.6,3190.2,0.55]
[1720702638219,0.31269734,3191.5,3190.2,0.55]
[1720702638492,0.23434521,3191.5,3190.1,3.13469]
[1720702638692,0.23434521,3191.5,3190.2,0.55]
[1720702638929,0.23434521,3191.5,3190.3,0.06267911]
[1720702639136,0.23434521,3191.5,3190.4,0.55]
[1720702639447,2.2651,3191.6,3189.9,3.13485]
[1720702639448,0.24994452,3191.4,3189.9,3.13485]
[1720702639731,0.24994452,3191.4,3189.5,3.19268386]
[1720702639889,0.24994452,3191.4,3190.0,3.13479]
[1720702640091,0.24994452,3191.4,3190.1,3.19735388]
[1720702640340,0.24994452,3191.4,3190.1,3.13467]
[1720702640488,0.24994452,3191.4,3190.1,3.13464]
[1720702640696,0.24994452,3191.4,3190.2,3.19719164]
[1720702640997,0.24994452,3191.4,3190.3,0.55]
[1720702641313,2.2651,3191.6,3190.3,0.55]
[1720702641314,0.07834853,3191.5,3190.3,0.55]
[1720702641520,0.07834853,3191.5,3190.1,3.68466]
[1720702641695,0.07834853,3191.5,3190.1,0.55]
[1720702642031,0.07834853,3191.5,3189.9,0.55]
[1720702642239,0.07834853,3191.5,3190.0,3.13477]
[1720702642394,0.71136481,3191.4,3190.1,0.55]
[1720702642759,0.07835346,3191.3,3190.1,0.55]
[1720702643231,0.07835342,3191.3,3190.1,3.68468]
[1720702643433,2.2651,3191.6,3190.2,3.13453]
[1720702643636,0.22651,3191.5,3190.3,0.55]
[1720702644141,3.13368,3191.2,3189.4,3.1353]
[1720702644350,3.13368,3191.2,3189.4,3.13536]
[1720702644351,5.47993,3191.0,3189.4,3.13536]
[1720702644516,0.07836937,3190.9,3189.4,3.13536]
[1720702644708,2.14473495,3190.9,3189.2,3.13558]
[1720702644897,2.39936506,3190.8,3189.2,3.13558]
[1720702645102,2.39936506,3190.8,3189.3,3.13542]
[1720702645103,0.07836934,3190.7,3189.3,3.13542]
[1720702645298,2.2697,3190.6,3189.0,3.13574]
[1720702645527,0.07837305,3190.5,3188.9,2.78]
[1720702645711,4.77214523,3190.5,3188.9,2.78]
[1720702645916,0.71202263,3190.4,3188.9,2.78]
[1720702646419,2.2964,3190.2,3188.9,2.78]
[1720702646645,0.07838425,3190.1,3188.6,3.13615]
[1720702646849,2.2964,3190.2,3188.6,3.13615]
[1720702647372,0.07838425,3190.1,3188.6,3.13615]
[1720702647667,0.23747843,3190.0,3188.4,3.13634]
[1720702647829,0.31586267,3190.0,3188.1,0.0627074]
[1720702648026,0.23747843,3190.0,3188.3,3.13646]
[1720702648226,0.23747843,3190.0,3188.4,3.13635]
[1720702648227,2.483,3189.9,3188.4,3.13635]
[1720702648468,0.27204784,3189.8,3188.4,0.313635]
[1720702649340,0.27204784,3189.8,3188.4,3.449935]
[1720702649528,0.27204784,3189.8,3188.5,3.13626]
[1720702649731,0.27204784,3189.8,3188.7,3.13604]
[1720702649967,2.483,3189.9,3188.8,0.06270742]
[1720702650329,2.483,3189.9,3188.9,0.55]
[1720702650862,2.483,3189.9,3189.0,0.06270355]
[1720702651070,2.483,3189.9,3189.3,3.13541]
[1720702651371,2.2563,3190.8,3189.5,3.13521]
[1720702651579,0.22563,3190.7,3189.6,0.55]
[1720702651764,0.30399062,3190.7,3189.6,0.55]
[1720702651970,0.30399062,3190.7,3189.4,0.55]
[1720702652148,3.43816062,3190.7,3189.2,0.55]
[1720702652346,0.22563,3190.7,3189.2,0.55]
[1720702652647,0.248193,3190.6,3189.5,3.13522]
[1720702652856,0.248193,3190.6,3189.2,0.55]
[1720702653048,0.248193,3190.6,3189.3,3.13539]
[1720702653290,0.248193,3190.6,3189.4,3.68538]
[1720702654236,0.248193,3190.6,3189.5,3.13527]
[1720702654438,0.248193,3190.6,3189.6,0.55]
[1720702655140,2.2563,3190.8,3189.6,3.68513]
[1720702655379,2.2563,3190.8,3189.6,0.55]
[1720702655580,2.2563,3190.8,3189.5,3.13523]
[1720702655788,2.2563,3190.8,3189.6,3.68518]
[1720702655943,2.4569,3190.6,3189.4,0.55]
[1720702656143,2.4569,3190.6,3189.2,0.55]
[1720702656144,0.07837349,3190.5,3189.2,0.55]
[1720702656364,0.07837349,3190.5,3189.1,0.55]
[1720702656682,0.07837433,3190.4,3188.9,3.13585]
[1720702656845,2.96474035,3190.6,3189.0,3.13577]
[1720702657044,0.79602266,3190.5,3189.1,3.1356]
[1720702657244,0.79602266,3190.5,3189.2,3.13557]
[1720702657463,2.4569,3190.6,3189.3,0.06270061]
[1720702657640,2.4569,3190.6,3189.1,3.13567]
[1720702657845,2.4569,3190.6,3189.2,3.19826058]
[1720702658145,2.4569,3190.6,3189.3,3.68544]
[1720702658146,2.5352757,3190.6,3189.3,3.68544]
[1720702658379,3.76552493,3190.6,3189.3,6.82083]
[1720702658676,0.39911549,3190.5,3189.4,3.13538]
[1720702658879,2.4569,3190.6,3189.5,3.74788614]
[1720702659096,2.4569,3190.6,3189.5,0.06269614]
[1720702659298,0.0783721,3190.5,3189.1,3.13559]
[1720702659589,0.25352721,3190.4,3189.1,3.13559]
[1720702660489,2.4569,3190.6,3189.5,3.13521]
[1720702660655,2.4569,3190.6,3189.6,0.0626912]
[1720702660854,2.4569,3190.6,3189.2,3.13551]
[1720702661049,2.4569,3190.6,3189.3,3.13548]
[1720702661288,2.4569,3190.6,3189.4,0.55]
[1720702661489,0.32406557,3190.5,3189.2,0.55]
[1720702661720,0.32406557,3190.5,3188.6,5.67712]
[1720702661721,5.50741,3190.4,3188.6,2.541]
[1720702661873,2.373,3190.4,3189.0,3.13571]
[1720702662219,2.373,3190.4,3188.5,1.26]
[1720702662220,2.373,3190.4,3189.1,0.06270304]
[1720702662398,2.373,3190.4,3189.6,3.13512]
[1720702662581,1.63613298,3191.2,3189.2,2.541]
[1720702662582,1.30862493,3191.1,3189.9,3.13481]
[1720702662777,3.73112493,3191.2,3190.0,0.06268426]
[1720702663001,2.4225,3191.2,3190.1,0.55]
[1720702663417,2.4225,3191.2,3190.0,3.74745359]
[1720702663788,2.50085536,3191.2,3190.0,0.55]
[1720702663986,2.50085536,3191.2,3189.2,2.541]
[1720702663987,1.25871047,3191.1,3189.8,0.55]
[1720702664189,2.50085536,3191.2,3189.7,0.55]
[1720702664190,0.07836296,3191.0,3189.7,0.55]
[1720702664414,1.71449594,3191.0,3189.4,3.13533]
[1720702664713,1.63613298,3190.9,3189.4,6.27063]
[1720702664917,1.63613298,3190.9,3189.7,3.13508]
[1720702665095,0.07836885,3191.0,3189.8,0.313508]
[1720702665096,0.07836269,3191.0,3189.8,0.313508]
[1720702665312,1.71449567,3191.0,3189.8,0.313508]
[1720702665473,1.63613298,3191.0,3189.8,0.313508]
[1720702665673,1.63613298,3190.9,3189.8,0.313508]
[1720702665878,1.63989165,3191.0,3189.8,0.313508]
[1720702666114,1.63989165,3190.9,3189.9,0.61269013]
[1720702666414,0.42946602,3191.1,3190.0,3.13478]
[1720702666415,1.63989165,3191.1,3190.0,3.13478]
[1720702666614,2.4225,3191.2,3190.2,3.13454]
[1720702667079,2.4225,3191.2,3190.3,0.55]
[1720702667278,2.4225,3191.2,3190.4,0.368454]
[1720702667591,4.06239165,3191.2,3190.5,0.55]
[1720702667799,1.63989165,3191.1,3190.5,0.55]
[1720702668007,2.4225,3191.2,3190.5,3.6843]
[1720702668177,2.4225,3191.2,3190.6,0.4052754]
[1720702668379,2.4225,3191.2,3190.5,0.55]
[1720702668647,1.63989165,3191.1,3190.2,0.55]
[1720702668920,1.63989165,3191.1,3190.2,3.68458]
[1720702669128,4.06239165,3191.2,3190.4,3.13431]
[1720702669281,2.4225,3191.2,3190.5,0.55]
[1720702669481,2.4225,3191.2,3190.5,0.918431]
[1720702669482,4.06347146,3191.2,3190.5,0.918431]
[1720702669803,4.06343394,3191.2,3190.0,3.13474]
[1720702670009,4.06343394,3191.2,3190.1,3.68469]
[1720702670615,1.64093394,3191.1,3190.1,3.68469]
[1720702670820,1.64093394,3191.1,3190.1,6.8193]
[1720702670978,2.4225,3191.2,3190.3,3.13442]
[1720702670979,4.06343394,3191.2,3190.3,3.13442]
[1720702671179,4.06343394,3191.2,3190.4,0.863442]
[1720702671410,2.4225,3191.2,3190.4,3.997802]
[1720702671620,2.4225,3191.2,3190.4,4.06047711]
[1720702672001,3.73518331,3191.2,3190.4,4.06047711]
[1720702672222,2.4225,3191.2,3190.5,3.13428]
[1720702672535,1.31268331,3191.5,3190.6,3.74681157]
[1720702672843,1.31268331,3191.4,3190.6,3.74681157]
[1720702672998,2.4542,3191.7,3190.6,3.74681157]
[1720702672999,1.31268331,3191.3,3190.6,3.74681114]
[1720702673330,1.64069112,3191.5,3190.8,3.134]
[1720702673331,1.31268331,3191.5,3190.8,3.134]
[1720702673498,2.4542,3191.7,3190.9,3.68389]
[1720702673499,3.76688331,3191.7,3190.9,3.68389]
[1720702673988,3.76688331,3191.7,3191.1,3.13371]
[1720702673989,2.4542,3191.7,3191.1,3.13371]
[1720702674199,2.4542,3191.7,3191.2,0.55]
[1720702674533,2.4542,3191.7,3191.1,0.55]
[1720702675002,3.60258331,3192.3,3191.3,3.1335]
[1720702675345,2.2899,3192.3,3191.4,0.86335]
[1720702675496,3.60258331,3192.3,3191.4,0.86335]
[1720702675697,1.31268331,3192.2,3191.4,0.86335]
[1720702675995,1.31268331,3192.1,3191.0,3.13374]
[1720702676348,1.31268331,3192.2,3191.1,3.6837]
[1720702676507,1.39101317,3192.2,3191.1,0.55]
[1720702676757,1.31268331,3191.9,3191.0,0.55]
[1720702677189,1.31268331,3192.1,3191.0,3.6838]
[1720702677373,1.31268331,3192.2,3191.0,3.6838]
[1720702677699,1.31268331,3192.2,3191.2,3.1336]
[1720702677993,1.39101665,3192.2,3191.0,0.55]
[1720702678195,1.31268331,3192.0,3191.0,0.55]
[1720702678405,0.07833337,3192.0,3191.0,0.55]
[1720702678696,1.31268331,3191.9,3190.5,3.1342]
[1720702678889,1.74214933,3192.0,3190.7,3.13403]
[1720702679097,1.31268331,3191.9,3190.8,0.55]
[1720702679454,1.31268331,3191.8,3190.7,0.55]
[1720702679653,1.31268331,3191.8,3190.7,3.6841]
[1720702679864,1.31268331,3191.9,3190.7,3.6841]
[1720702680080,1.31268331,3192.0,3190.8,0.399752]
[1720702680284,1.31268331,3192.1,3190.9,3.68388]
[1720702680473,0.07833549,3192.0,3190.9,0.55]
[1720702680999,1.31268331,3191.9,3190.6,0.55]
[1720702681303,1.39102267,3191.8,3190.6,0.55]
[1720702681520,1.31268331,3191.9,3190.6,0.55]
[1720702681798,1.39101945,3191.9,3190.9,3.13389]
[1720702681968,1.39101945,3191.9,3190.6,0.55]
[1720702682365,1.31268331,3191.8,3190.6,3.68414]
[1720702682563,1.61557497,3191.8,3190.7,3.13402]
[1720702682769,1.31268331,3191.8,3190.8,3.68399]
[1720702682975,1.31268331,3192.1,3190.9,3.13384]
[1720702683179,1.31268331,3192.1,3191.0,3.13379]
[1720702683383,4.35726314,3192.3,3191.1,0.55]
[1720702683384,1.31268331,3192.2,3191.1,0.55]
[1720702683702,4.03204933,3192.3,3191.2,3.13359]
[1720702683865,4.03204933,3192.3,3191.1,3.68362]
[1720702683866,2.71936602,3192.3,3191.1,3.68362]
[1720702684068,4.03204933,3192.3,3191.1,0.55]
[1720702684269,1.31268331,3192.2,3191.2,3.19626407]
[1720702684504,3.60258331,3192.3,3191.3,3.6835]
[1720702684857,2.71936602,3192.3,3191.3,0.55]
[1720702685199,1.31268331,3192.6,3191.5,3.1333]
[1720702685397,1.31268331,3192.7,3191.6,0.55]
[1720702686402,4.06144933,3192.9,3192.0,3.13282]
[1720702686555,4.06144933,3192.9,3191.6,0.55]
[1720702686556,2.3193,3192.9,3191.6,0.55]
[1720702686766,1.96078198,3192.8,3191.6,3.68319]
[1720702687014,1.39100342,3192.7,3191.1,3.13366]
[1720702687171,1.31268331,3192.6,3191.3,3.13342]
[1720702687365,1.74214933,3192.7,3191.4,0.55]
[1720702687572,0.47316169,3192.6,3191.4,3.68338]
[1720702687880,1.785845,3192.6,3191.4,0.55]
[1720702688076,1.785845,3192.6,3191.1,0.55]
[1720702688077,0.47316169,3192.6,3191.1,0.55]
[1720702688313,0.47316169,3192.6,3191.4,3.1334]
[1720702688471,0.0783245,3192.6,3191.5,3.13332]
[1720702688663,0.07832448,3192.7,3191.5,3.13331]
[1720702688865,1.88247167,3192.8,3189.5,0.6423979]
[1720702688866,2.3458,3191.7,3189.5,0.6423979]
[1720702689069,2.3458,3191.7,3188.8,5.41861963]
[1720702689070,2.3458,3191.7,3188.8,5.0128]
[1720702689071,1.31268331,3191.2,3188.8,5.0128]
[1720702689284,3.13359689,3191.6,3188.9,0.06269006]
[1720702689285,1.92924188,3191.1,3188.9,0.06269006]
[1720702689485,2.3458,3190.9,3189.0,0.82114301]
[1720702689684,0.53819423,3190.8,3189.2,3.13552]
[1720702689984,0.53819423,3190.8,3189.3,3.13548]
[1720702690188,2.6601,3190.9,3189.6,3.13518]
[1720702690510,2.3458,3190.9,3189.6,3.13518]
[1720702690823,2.3458,3190.9,3189.7,0.627046]
[1720702691017,2.3458,3190.9,3189.7,3.762086]
[1720702691329,2.3458,3190.9,3189.8,3.13493]
[1720702691529,2.3458,3190.9,3189.9,3.68486]
[1720702692799,1.31268331,3191.5,3190.0,5.52192]
[1720702692998,1.31268331,3191.6,3190.1,0.55]
[1720702693196,1.84265737,3191.8,3190.1,0.55]
[1720702693399,0.52997406,3191.6,3190.4,3.13434]
[1720702693611,0.52997406,3191.6,3190.5,3.68429]
[1720702694412,1.84265737,3191.6,3190.5,3.68429]
[1720702695204,0.52997406,3191.6,3190.5,3.68429]
[1720702695452,1.84265737,3191.6,3190.5,3.68429]
[1720702695622,1.63616588,3191.8,3190.7,3.13404]
[1720702695623,1.31268331,3191.8,3190.7,3.13404]
[1720702695803,1.31268331,3191.8,3190.8,3.68396]
[1720702696015,0.07833652,3191.8,3190.8,3.68396]
[1720702696386,1.92099389,3191.8,3190.8,0.55]
[1720702696591,0.52997406,3191.7,3190.6,0.368429]
[1720702696799,0.07834169,3191.6,3190.6,0.368429]
[1720702697003,0.07834169,3191.6,3190.3,3.13444]
[1720702697004,1.84265737,3191.5,3190.3,3.13444]
[1720702697206,0.07834758,3191.4,3190.4,0.55]
[1720702697400,0.07834758,3191.4,3190.4,3.13439]
[1720702697645,1.84265737,3191.5,3190.5,0.06267802]
[1720702697846,0.52997406,3191.5,3190.4,3.13433]
[1720702698151,0.52997406,3191.5,3190.7,3.13404]
[1720702698303,0.52997406,3191.5,3190.8,3.13394]
[1720702698508,1.84265737,3191.8,3190.8,3.13394]
[1720702698707,1.84265737,3191.8,3189.8,3.13495]
[1720702698708,4.56239766,3191.7,3189.5,7.29]
[1720702698903,1.31268331,3191.2,3190.3,3.13449]
[1720702699131,2.13767984,3191.2,3190.3,6.26884]
[1720702699331,0.52997406,3191.2,3190.6,3.13417]
[1720702699534,1.31268331,3191.6,3190.8,3.13392]
[1720702699751,2.85707406,3191.7,3190.8,6.26784]
[1720702700068,2.85707406,3191.7,3191.1,3.13367]
[1720702700069,0.52997406,3191.7,3191.1,3.13367]
[1720702700341,2.3271,3192.3,3191.3,3.13346]
[1720702700555,2.3271,3192.3,3190.8,0.626784]
[1720702700556,0.07832869,3192.2,3190.9,3.13384]
[1720702700705,0.07832869,3192.2,3191.1,3.13368]
[1720702700706,1.92098606,3192.2,3191.1,3.13368]
[1720702700919,2.26746598,3192.2,3191.4,3.13339]
[1720702701211,2.34579617,3192.2,3191.2,3.13357]
[1720702701455,1.03311286,3192.2,3191.2,3.13357]
[1720702701752,1.03311286,3192.2,3191.4,3.13336]
[1720702701753,0.52997406,3192.2,3191.4,3.13336]
[1720702702256,0.52997406,3192.2,3191.4,0.06266088]
[1720702702408,0.52997406,3192.2,3191.7,3.13312]
[1720702702964,1.84265737,3192.7,3192.0,3.13276]
[1720702703113,0.52997406,3192.7,3192.0,3.13276]
[1720702703320,0.52997406,3192.7,3192.0,3.759322]
[1720702703841,1.84265737,3192.9,3192.1,3.13273]
[1720702704007,0.52997406,3192.9,3192.1,3.13273]
[1720702704217,0.52997406,3192.9,3192.2,3.13257]
[1720702704561,3.65775889,3193.2,3192.5,3.13233]
[1720702704762,2.17080087,3193.2,3192.5,3.55050715]
[1720702704922,2.17080087,3193.2,3192.7,3.13211]
[1720702705118,2.4452,3193.7,3192.7,3.13211]
[1720702705462,1.63796523,3194.0,3192.6,0.61263589]
[1720702705463,0.3143,3194.0,3193.0,3.13185]
[1720702705663,0.84427406,3194.0,3193.1,3.13171]
[1720702705978,3.59988331,3194.3,3192.9,3.13191]
[1720702706272,3.59988331,3194.3,3193.1,3.13174]
[1720702706273,0.52997406,3194.2,3193.1,3.13174]
[1720702706434,0.52997406,3194.2,3193.3,3.13155]
[1720702706790,0.81169147,3194.2,3193.3,3.13148]
[1720702706951,2.2872,3194.3,3193.5,3.13126]
[1720702707151,3.89479019,3194.8,3193.8,3.13103]
[1720702707574,3.89479019,3194.8,3193.9,3.13094]
[1720702707958,3.89479019,3194.8,3193.9,3.13088]
[1720702708295,3.89479019,3194.8,3194.0,3.13087]
[1720702708463,2.2946,3194.8,3194.0,3.13087]
[1720702708858,2.2946,3194.8,3194.2,3.13064]
[1720702709059,10.0,3195.0,3194.2,3.13064]
[1720702709565,10.0,3195.0,3194.4,3.13047]
[1720702710100,10.0,3195.0,3194.4,3.756584]
[1720702710281,10.0,3195.0,3194.5,3.13037]
[1720702711012,2.54175287,3194.9,3193.4,0.55]
[1720702711156,0.0782739,3194.8,3193.5,3.13131]
[1720702711354,0.0782739,3194.8,3193.1,3.13175]
[1720702711355,2.61927085,3194.8,3193.1,3.13175]
[1720702711560,0.50827708,3194.7,3193.1,3.13175]
[1720702711855,2.258,3194.5,3192.5,7.29]
[1720702712050,2.258,3194.5,3193.4,3.13139]
[1720702712255,2.258,3194.5,3193.5,3.13134]
[1720702712495,0.07826467,3194.9,3193.9,3.13096]
[1720702712653,1.26984647,3194.8,3193.9,3.13096]
[1720702712851,1.26984647,3194.8,3193.5,3.13132]
[1720702713069,0.07826472,3194.7,3193.7,3.13115]
[1720702713265,12.6202,3195.0,3194.0,3.13077]
[1720702713503,12.3059,3195.0,3194.0,3.13077]
[1720702713801,12.3059,3195.0,3194.4,3.13045]
[1720702714310,12.3059,3195.0,3194.2,3.13058]
[1720702714311,0.07825267,3194.9,3193.6,3.13121]
[1720702714609,0.07825267,3194.9,3193.0,3.13184]
[1720702714610,0.3143,3194.8,3193.0,3.13184]
[1720702714772,0.3143,3194.8,3192.3,2.541]
[1720702714773,2.3366,3194.6,3192.7,7.29]
[1720702714971,2.3366,3194.6,3193.3,3.13154]
[1720702715209,0.51919,3194.5,3193.4,3.13145]
[1720702715411,0.51919,3194.5,3193.5,3.13135]
[1720702715613,2.3366,3194.6,3193.6,3.13124]
[1720702716111,2.3366,3194.6,3193.8,3.13105]
[1720702716313,10.0,3195.0,3194.4,3.1304]
[1720702716721,10.0,3195.0,3194.5,3.13035]
[1720702716893,10.0,3195.0,3194.6,3.13025]
[1720702718113,10.0,3195.0,3194.8,3.13008]
[1720702719618,10.0,3195.0,3194.9,3.12998]
[1720702720180,10.0,3195.0,3193.7,3.13114]
[1720702720412,10.0,3195.0,3194.5,3.13031]
[1720702720575,10.0,3195.0,3194.6,3.13027]
[1720702721018,10.0,3195.0,3194.7,3.13018]
[1720702721225,10.0,3195.0,3194.9,3.12998]
[1720702721424,10.0,3195.0,3194.9,6.25996]
[1720702721722,10.0,3195.0,3194.5,3.13034]
[1720702721882,10.0,3195.0,3194.0,3.13085]
[1720702721883,1.45069993,3197.0,3195.0,1.4017]
[1720702722087,2.68475218,3198.7,3195.0,1.4017]
[1720702722088,2.4877,3196.9,3196.1,3.12873]
[1720702722299,2.81469013,3196.9,3195.0,3.12988]
[1720702722512,1.5536443,3196.8,3195.1,0.55]
[1720702722693,0.07823464,3196.7,3195.1,0.55]
[1720702722894,3.9123443,3196.6,3195.2,3.12961]
[1720702723096,3.9123443,3196.6,3195.3,3.12958]
[1720702723297,0.39905789,3196.5,3195.3,3.12958]
[1720702723512,0.39905789,3196.5,3195.5,3.12939]
[1720702723902,0.39905789,3196.5,3195.7,3.12918]
[1720702724327,1.2216443,3196.5,3195.8,3.12903]
[1720702724630,1.2216443,3196.4,3195.8,3.12903]
[1720702724924,2.3587,3196.6,3195.9,0.55]
[1720702725109,2.3587,3196.6,3196.0,3.12889]
[1720702725628,0.8146443,3196.7,3196.1,0.06257235]
[1720702725798,2.4937,3197.5,3196.1,0.06257235]
[1720702725799,0.8146443,3197.4,3196.2,3.12862]
[1720702726001,0.33083443,3197.3,3196.5,3.12841]
[1720702726311,1.14547873,3197.3,3196.6,3.12823]
[1720702726520,1.14547873,3197.3,3196.7,3.12821]
[1720702727257,0.8146443,3197.3,3196.9,3.12799]
[1720702727547,0.8146443,3197.8,3197.0,0.06255218]
[1720702727715,0.8146443,3197.8,3197.1,3.12781]
[1720702727916,0.8146443,3197.8,3197.0,3.12793]
[1720702728154,0.8146443,3197.8,3196.9,3.12801]
[1720702728343,0.8146443,3197.8,3196.8,3.12806]
[1720702728546,0.8146443,3197.8,3196.9,3.67801]
[1720702729045,0.8146443,3197.8,3196.8,3.12804]